bitfinex/quotes_BTCUSD_20250719
["timestamp","ask_amount","ask_price","bid_price","bid_amount"]
[1752945748568,0.39478815,117880.0,117870.0,0.13024]
[1752945748781,0.21358711,117880.0,117870.0,0.13024]
[1752945749013,0.39478815,117880.0,117870.0,0.13024]
[1752945749211,0.52402815,117880.0,117870.0,0.13024]
[1752945750260,0.21358711,117880.0,117870.0,0.13024]
[1752945750479,0.34282711,117880.0,117870.0,0.13024]
[1752945752046,0.52402815,117880.0,117870.0,0.13024]
[1752945753602,0.34282711,117880.0,117870.0,0.13024]
[1752945754766,0.35124339,117880.0,117870.0,0.13038135]
[1752945757069,0.71364547,117880.0,117870.0,0.00114135]
[1752945757498,0.79940509,117880.0,117870.0,0.00114135]
[1752945757933,0.88491537,117880.0,117870.0,0.00114135]
[1752945758568,0.88691537,117880.0,117870.0,0.00114135]
[1752945758784,0.88491537,117880.0,117870.0,0.00114135]
[1752945759030,0.88491537,117880.0,117870.0,0.00014135]
[1752945759235,0.88791537,117880.0,117870.0,0.00014135]
[1752945759452,0.88891537,117880.0,117870.0,0.00014135]
[1752945759889,0.88791537,117880.0,117870.0,0.00014135]
[1752945760107,0.88991537,117880.0,117870.0,0.00014135]
[1752945760324,0.88149909,117880.0,117870.0,0.00014135]
[1752945761048,0.79573947,117880.0,117870.0,0.00014135]
[1752945762435,0.43333739,117880.0,117870.0,0.00014135]
[1752945762638,0.79573947,117880.0,117870.0,0.00014135]
[1752945763845,0.80424312,117880.0,117870.0,0.00014135]
[1752945765454,0.31260104,117880.0,117870.0,0.00014135]
[1752945765706,0.35637076,117880.0,117870.0,0.00014135]
[1752945765905,0.5375718,117880.0,117870.0,0.00014135]
[1752945767264,0.4082918,117880.0,117870.0,0.00014135]
[1752945767508,0.35633076,117880.0,117870.0,0.00014135]
[1752945767934,0.5375318,117880.0,117870.0,0.00014135]
[1752945768657,0.19589076,117880.0,117870.0,0.18338239]
[1752945768870,0.32513076,117880.0,117870.0,0.18338239]
[1752945769312,0.32513076,117880.0,117870.0,0.00218135]
[1752945769755,0.32313076,117880.0,117870.0,0.00218135]
[1752945769964,0.5023318,117880.0,117870.0,0.00014135]
[1752945770181,0.5043318,117880.0,117870.0,0.00014135]
[1752945770687,0.5202318,117880.0,117870.0,0.00014135]
[1752945771205,0.5043318,117880.0,117870.0,0.00014135]
[1752945772094,0.71693284,117880.0,117870.0,0.00014135]
[1752945772302,0.5357318,117880.0,117870.0,0.00014135]
[1752945781044,0.35453076,117880.0,117870.0,0.00014135]
[1752945781238,0.5357318,117880.0,117870.0,0.00014135]
[1752945781554,0.35453076,117880.0,117870.0,0.00014135]
[1752945781766,0.5357318,117880.0,117870.0,0.00014135]
[1752945782737,0.33943076,117880.0,117870.0,0.00014135]
[1752945782973,0.5206318,117880.0,117870.0,0.00014135]
[1752945783668,0.5043318,117880.0,117870.0,0.00014135]
[1752945785249,0.32313076,117880.0,117870.0,0.00014135]
[1752945785490,0.5043318,117880.0,117870.0,0.00014135]
[1752945787781,0.32313076,117880.0,117870.0,0.00014135]
[1752945787997,0.5043718,117880.0,117870.0,0.00014135]
[1752945792057,0.5208718,117880.0,117870.0,0.00014135]
[1752945792252,0.5372718,117880.0,117870.0,0.00014135]
[1752945792890,0.35607076,117880.0,117870.0,0.00014135]
[1752945793117,0.5208718,117880.0,117870.0,0.00014135]
[1752945793348,0.18664592,117870.0,117860.0,0.21632658]
[1752945793576,0.18860592,117870.0,117860.0,0.25093658]
[1752945793802,0.19179592,117870.0,117860.0,0.25093658]
[1752945794023,0.19179592,117870.0,117860.0,0.24849658]
[1752945794690,0.19179592,117870.0,117860.0,0.24858112]
[1752945794951,0.19279592,117870.0,117860.0,0.24858112]
[1752945795843,0.19279592,117870.0,117860.0,0.06537008]
[1752945796052,0.37399696,117870.0,117860.0,0.03277008]
[1752945800427,0.19279592,117870.0,117860.0,0.03277008]
[1752945802662,0.37399696,117870.0,117860.0,0.03277008]
[1752945809805,0.19279592,117870.0,117860.0,0.03277008]
[1752945810009,0.37399696,117870.0,117860.0,0.03277008]
[1752945810270,0.19279592,117870.0,117860.0,0.03277008]
[1752945815344,0.19279592,117870.0,117860.0,0.04602343]
[1752945816275,0.19279592,117870.0,117860.0,0.03277008]
[1752945817401,0.19279592,117870.0,117860.0,0.21397112]
[1752945817563,0.19279592,117870.0,117860.0,0.03277008]
[1752945818560,0.17954592,117870.0,117860.0,0.03277008]
[1752945818779,0.17954592,117870.0,117860.0,0.21397112]
[1752945842505,0.17954592,117870.0,117860.0,0.03277008]
[1752945842716,0.17954592,117870.0,117860.0,0.21397112]
[1752945847928,0.17954592,117870.0,117860.0,0.03277008]
[1752945861441,0.17954592,117870.0,117860.0,0.03093008]
[1752945869184,0.36074696,117870.0,117860.0,0.03093008]
[1752945869443,0.39204696,117870.0,117860.0,0.03093008]
[1752945871690,0.56331686,117870.0,117860.0,0.03093008]
[1752945871900,0.65875828,117870.0,117860.0,0.03093008]
[1752945872107,0.47755724,117870.0,117860.0,0.03093008]
[1752945875089,0.2963562,117870.0,117860.0,0.03093008]
[1752945875292,0.47755724,117870.0,117860.0,0.03093008]
[1752945875609,0.56331686,117870.0,117860.0,0.03093008]
[1752945876422,0.17954592,117870.0,117860.0,0.03093008]
[1752945876598,0.30874592,117870.0,117860.0,0.03093008]
[1752945876802,0.48994696,117870.0,117860.0,0.03093008]
[1752945884380,0.30874592,117870.0,117860.0,0.03093008]
[1752945884654,0.48994696,117870.0,117860.0,0.03093008]
[1752945885241,0.50544696,117870.0,117860.0,0.03093008]
[1752945885671,0.48994696,117870.0,117860.0,0.03093008]
[1752945890699,0.30874592,117870.0,117860.0,0.03093008]
[1752945890868,0.48994696,117870.0,117860.0,0.03093008]
[1752945899482,0.59155724,117870.0,117860.0,0.03093008]
[1752945899686,0.60705724,117870.0,117860.0,0.03093008]
[1752945901620,0.69281686,117870.0,117860.0,0.03093008]
[1752945902924,0.69481686,117870.0,117860.0,0.03093008]
[1752945903695,0.69381686,117870.0,117860.0,0.03093008]
[1752945904084,0.69681686,117870.0,117860.0,0.03093008]
[1752945914331,0.68131686,117870.0,117860.0,0.03093008]
[1752945915726,0.50011582,117870.0,117860.0,0.03093008]
[1752945915948,0.68131686,117870.0,117860.0,0.03093008]
[1752945916738,0.57945724,117870.0,117860.0,0.03093008]
[1752945917468,0.2690562,117870.0,117860.0,0.03093008]
[1752945917677,0.57941724,117870.0,117860.0,0.03093008]
[1752945920538,0.57937724,117870.0,117860.0,0.03093008]
[1752945921266,0.59577724,117870.0,117860.0,0.03093008]
[1752945921506,0.69673686,117870.0,117860.0,0.03093008]
[1752945928435,0.56761686,117870.0,117860.0,0.03093008]
[1752945928659,0.69673686,117870.0,117860.0,0.03093008]
[1752945930256,0.68153686,117870.0,117860.0,0.03093008]
[1752945930465,0.66513686,117870.0,117860.0,0.03093008]
[1752945931345,0.69773686,117870.0,117860.0,0.03093008]
[1752945932081,0.68133686,117870.0,117860.0,0.03093008]
[1752945932634,0.70706911,117870.0,117860.0,0.03093008]
[1752945934559,0.69086911,117870.0,117860.0,0.03093008]
[1752945937918,0.60510949,117870.0,117860.0,0.03082756]
[1752945939126,0.63680949,117870.0,117860.0,0.03082756]
[1752945939346,0.81801053,117870.0,117860.0,1e-08]
[1752945943415,1.15801053,117870.0,117860.0,1e-08]
[1752945944086,1.18347653,117870.0,117860.0,1e-08]
[1752945944331,1.26923615,117870.0,117860.0,1e-08]
[1752945946197,0.90683407,117870.0,117860.0,1e-08]
[1752945946398,1.26923615,117870.0,117860.0,1e-08]
[1752945958955,1.10841615,117870.0,117860.0,1e-08]
[1752945959168,1.23749615,117870.0,117860.0,1e-08]
[1752945959407,0.74601407,117870.0,117860.0,1e-08]
[1752945959597,0.78418445,117870.0,117860.0,0.03342001]
[1752945959796,0.96538549,117870.0,117860.0,0.03342001]
[1752945960241,0.94189949,117870.0,117860.0,0.03342001]
[1752945960458,1.03087911,117870.0,117860.0,0.03342001]
[1752945960665,0.90179911,117870.0,117860.0,0.03342001]
[1752945960844,1.03087911,117870.0,117860.0,0.03342001]
[1752945962982,0.84967807,117870.0,117860.0,0.03342001]
[1752945963230,1.03087911,117870.0,117860.0,0.03342001]
[1752945967582,0.84967807,117870.0,117860.0,0.03342001]
[1752945967790,1.03087911,117870.0,117860.0,0.03342001]
[1752945971797,0.84967807,117870.0,117860.0,0.03342001]
[1752945972029,1.03087911,117870.0,117860.0,0.03342001]
[1752945972679,0.84967807,117870.0,117860.0,0.03342001]
[1752945972835,1.03087911,117870.0,117860.0,0.03342001]
[1752945973033,0.84967807,117870.0,117860.0,0.03342001]
[1752945973246,1.03087911,117870.0,117860.0,0.03342001]
[1752945974671,1.21208015,117870.0,117860.0,0.03140001]
[1752945975010,1.03087911,117870.0,117860.0,0.03140001]
[1752945977612,1.03087911,117870.0,117860.0,1e-08]
[1752945979502,0.84967807,117870.0,117860.0,1e-08]
[1752945979715,1.03087911,117870.0,117860.0,1e-08]
[1752945982689,1.03087911,117870.0,117860.0,0.03230001]
[1752945983302,0.90179911,117870.0,117860.0,0.03230001]
[1752945983513,1.03087911,117870.0,117860.0,0.03230001]
[1752945984768,1.22768015,117870.0,117860.0,1e-08]
[1752945984920,1.24288015,117870.0,117860.0,1e-08]
[1752945985306,1.21208015,117870.0,117860.0,1e-08]
[1752945987140,1.08300015,117870.0,117860.0,1e-08]
[1752945987337,1.21204015,117870.0,117860.0,1e-08]
[1752945989895,1.22744015,117870.0,117860.0,1e-08]
[1752945990506,1.21204015,117870.0,117860.0,1e-08]
[1752945992571,1.1863079,117870.0,117860.0,1e-08]
[1752945993377,1.2025079,117870.0,117860.0,1e-08]
[1752945993792,1.1863079,117870.0,117860.0,1e-08]
[1752945995286,1.21222897,117870.0,117860.0,1e-08]
[1752945995501,1.24462897,117870.0,117860.0,1e-08]
[1752945995994,1.22842897,117870.0,117860.0,1e-08]
[1752945996295,1.21222897,117870.0,117860.0,1e-08]
[1752945998556,1.22732897,117870.0,117860.0,1e-08]
[1752945998783,1.24332897,117870.0,117860.0,1e-08]
[1752945999700,1.22732897,117870.0,117860.0,1e-08]
[1752946001013,1.24332897,117870.0,117860.0,1e-08]
[1752946001844,1.21222897,117870.0,117860.0,1e-08]
[1752946002470,1.08318897,117870.0,117860.0,1e-08]
[1752946002675,1.21222897,117870.0,117860.0,1e-08]
[1752946003695,1.24422897,117870.0,117860.0,1e-08]
[1752946004035,1.22802897,117870.0,117860.0,1e-08]
[1752946004326,1.24422897,117870.0,117860.0,1e-08]
[1752946004533,1.21222897,117870.0,117860.0,1e-08]
[1752946005370,1.08318897,117870.0,117860.0,1e-08]
[1752946005581,1.24422897,117870.0,117860.0,1e-08]
[1752946006018,1.22802897,117870.0,117860.0,1e-08]
[1752946007342,1.08318897,117870.0,117860.0,1e-08]
[1752946007513,1.21222897,117870.0,117860.0,1e-08]
[1752946008331,1.24482897,117870.0,117860.0,1e-08]
[1752946008961,1.22842897,117870.0,117860.0,1e-08]
[1752946009897,1.21222897,117870.0,117860.0,1e-08]
[1752946016088,1.08318897,117870.0,117860.0,1e-08]
[1752946016316,1.21222897,117870.0,117860.0,1e-08]
[1752946020409,0.84982689,117870.0,117860.0,1e-08]
[1752946020642,1.21222897,117870.0,117860.0,1e-08]
[1752946020870,1.03102793,117870.0,117860.0,1e-08]
[1752946021855,1.21222897,117870.0,117860.0,1e-08]
[1752946023710,1.08318897,117870.0,117860.0,1e-08]
[1752946023937,1.21218897,117870.0,117860.0,1e-08]
[1752946028494,0.84978689,117870.0,117860.0,0.03272001]
[1752946028719,1.03098793,117870.0,117860.0,0.03272001]
[1752946032338,0.90198793,117870.0,117860.0,0.03272001]
[1752946032551,1.03098793,117870.0,117860.0,0.03272001]
[1752946033714,1.03943711,117870.0,117860.0,0.03272001]
[1752946035395,0.91043711,117870.0,117860.0,0.03272001]
[1752946035600,1.03943711,117870.0,117860.0,0.03272001]
[1752946036444,1.22063815,117870.0,117860.0,1e-08]
[1752946036673,1.25363815,117870.0,117860.0,1e-08]
[1752946037500,1.12463815,117870.0,117860.0,1e-08]
[1752946037698,1.25363815,117870.0,117860.0,1e-08]
[1752946040478,1.12463815,117870.0,117860.0,1e-08]
[1752946040723,1.25363815,117870.0,117860.0,1e-08]
[1752946041782,1.12463815,117870.0,117860.0,1e-08]
[1752946041962,1.27906115,117870.0,117860.0,1e-08]
[1752946044744,1.25359815,117870.0,117860.0,1e-08]
[1752946048134,1.12463815,117870.0,117860.0,1e-08]
[1752946048402,1.25359815,117870.0,117860.0,1e-08]
[1752946048625,1.26944779,117870.0,117860.0,1e-08]
[1752946049645,1.25359815,117870.0,117860.0,1e-08]
[1752946052103,1.25359815,117870.0,117840.0,1e-08]
[1752946052104,0.56437954,117850.0,117840.0,1e-08]
[1752946052300,0.17820758,117840.0,117830.0,0.0325]
[1752946052503,0.76015994,117840.0,117830.0,0.00226461]
[1752946055425,0.76015994,117840.0,117830.0,0.00326461]
[1752946059056,0.76015994,117840.0,117830.0,0.00426461]
[1752946059493,0.76015994,117840.0,117830.0,0.00228461]
[1752946059689,0.84591956,117840.0,117830.0,0.00228461]
[1752946061185,0.87146427,117840.0,117830.0,0.00228461]
[1752946065577,0.88746427,117840.0,117830.0,0.00228461]
[1752946070532,0.90276427,117840.0,117830.0,0.00228461]
[1752946077279,0.35942375,117830.0,117820.0,0.00043258]
[1752946077483,0.68092362,117830.0,117820.0,0.00048248]
[1752946077690,0.48372258,117830.0,117820.0,0.00048248]
[1752946077934,0.66492362,117830.0,117820.0,0.00048248]
[1752946078682,0.66492362,117830.0,117820.0,0.00248248]
[1752946079423,0.68092362,117830.0,117820.0,0.00448248]
[1752946079657,0.59516403,117830.0,117820.0,0.00448248]
[1752946080346,0.57916403,117830.0,117820.0,0.00448248]
[1752946083725,0.57916403,117830.0,117820.0,0.00649248]
[1752946083950,0.44493403,117830.0,117820.0,0.00649248]
[1752946084158,0.57385403,117830.0,117820.0,0.03929248]
[1752946084357,0.57385403,117830.0,117820.0,0.04118248]
[1752946084765,0.57385403,117830.0,117820.0,0.03929248]
[1752946085087,0.57385403,117830.0,117820.0,0.03917066]
[1752946085903,0.44493403,117830.0,117820.0,0.03917066]
[1752946086118,0.57381403,117830.0,117820.0,0.03917066]
[1752946089032,0.57912403,117830.0,117820.0,0.03917066]
[1752946089565,0.57912403,117830.0,117820.0,0.00637066]
[1752946091684,0.39792299,117830.0,117820.0,0.00637066]
[1752946091919,0.57912403,117830.0,117820.0,0.00637066]
[1752946092473,0.41614687,117830.0,117820.0,0.00637066]
[1752946092692,0.6584514,117830.0,117820.0,0.00637066]
[1752946093125,0.6584514,117830.0,117820.0,0.00436066]
[1752946094811,0.57912403,117830.0,117820.0,0.00436066]
[1752946095564,0.45024403,117830.0,117820.0,0.00436066]
[1752946095790,0.57912403,117830.0,117820.0,0.00436066]
[1752946096210,0.39792299,117830.0,117820.0,0.00436066]
[1752946096446,0.57912403,117830.0,117820.0,0.00436066]
[1752946097452,0.45024403,117830.0,117820.0,0.00436066]
[1752946097675,0.57912403,117830.0,117820.0,0.00436066]
[1752946098349,0.39792299,117830.0,117820.0,0.00436066]
[1752946098582,0.57912403,117830.0,117820.0,0.00436066]
[1752946100553,0.57912403,117830.0,117820.0,0.00634066]
[1752946101617,0.39792299,117830.0,117820.0,0.00634066]
[1752946101822,0.57912403,117830.0,117820.0,0.00634066]
[1752946102233,0.57912403,117830.0,117820.0,0.00436066]
[1752946103298,0.39792299,117830.0,117820.0,0.00436066]
[1752946103518,0.57912403,117830.0,117820.0,0.00436066]
[1752946103738,0.39792299,117830.0,117820.0,0.00436066]
[1752946103941,0.57912403,117830.0,117820.0,0.00436066]
[1752946104201,0.57381403,117830.0,117820.0,0.00634066]
[1752946104440,0.57381403,117830.0,117820.0,0.03784066]
[1752946104670,0.57381403,117830.0,117820.0,0.00634066]
[1752946104889,0.57904403,117830.0,117820.0,0.00436066]
[1752946109083,0.39784299,117830.0,117820.0,0.00436066]
[1752946109297,0.57904403,117830.0,117820.0,0.00436066]
[1752946112414,0.17822271,117830.0,117820.0,0.2189417]
[1752946112647,0.17822271,117830.0,117820.0,0.2208317]
[1752946112884,0.30710271,117830.0,117820.0,0.2208317]
[1752946114657,0.30710271,117830.0,117820.0,0.22095352]
[1752946116351,0.29384459,117830.0,117820.0,0.40215456]
[1752946116573,0.30233124,117830.0,117820.0,0.40215456]
[1752946116785,0.17345124,117830.0,117820.0,0.40215456]
[1752946117403,0.17345124,117830.0,117820.0,0.53103456]
[1752946123191,0.17345124,117830.0,117820.0,0.70078502]
[1752946123410,0.18193782,117830.0,117820.0,0.70927239]
[1752946123625,0.18193782,117830.0,117820.0,0.71775969]
[1752946124463,0.18193782,117830.0,117820.0,0.72624692]
[1752946125418,0.18193782,117830.0,117820.0,0.71775969]
[1752946125847,0.17345124,117830.0,117820.0,0.71775969]
[1752946131477,0.17345124,117830.0,117820.0,0.72624692]
[1752946133046,0.17345124,117830.0,117820.0,0.71775969]
[1752946134716,0.17345124,117830.0,117820.0,0.35535761]
[1752946134958,0.16496459,117830.0,117820.0,0.70927254]
[1752946135381,0.16496459,117830.0,117820.0,0.71775999]
[1752946137976,0.15170706,117830.0,117820.0,0.71775999]
[1752946138198,0.15170706,117830.0,117820.0,0.16863248]
[1752946138426,0.15170706,117830.0,117820.0,0.52914456]
[1752946140421,0.15170706,117830.0,117820.0,0.53103456]
[1752946141305,0.15170706,117830.0,117820.0,0.16863248]
[1752946141506,0.15170706,117830.0,117820.0,0.53103456]
[1752946143047,0.15170706,117830.0,117820.0,0.52914456]
[1752946145947,0.15370706,117830.0,117820.0,0.36688456]
[1752946146147,0.15683706,117830.0,117820.0,0.31452352]
[1752946146581,0.15683706,117830.0,117820.0,0.31651352]
[1752946147149,0.15483706,117830.0,117820.0,0.31651352]
[1752946151339,0.15683706,117830.0,117820.0,0.31651352]
[1752946153246,0.15483706,117830.0,117820.0,0.31651352]
[1752946154183,0.15483706,117830.0,117820.0,0.49771456]
[1752946155080,0.15483706,117830.0,117820.0,0.13531248]
[1752946155315,0.15683706,117830.0,117820.0,0.31651352]
[1752946164092,0.15683706,117830.0,117820.0,0.49771456]
[1752946164926,0.15683706,117830.0,117820.0,0.31651352]
[1752946167407,0.17193706,117830.0,117820.0,0.13527248]
[1752946167590,0.17193706,117830.0,117820.0,0.31448352]
[1752946167802,0.15683706,117830.0,117820.0,0.31448352]
[1752946173930,0.15683706,117830.0,117820.0,0.31434072]
[1752946174136,0.15683706,117830.0,117820.0,0.31648072]
[1752946174776,0.15683706,117830.0,117820.0,0.3163589]
[1752946175547,0.15683706,117830.0,117820.0,0.13515786]
[1752946175763,0.15683706,117830.0,117820.0,0.3163589]
[1752946176859,0.15683706,117830.0,117820.0,0.13515786]
[1752946177091,0.15683706,117830.0,117820.0,0.3163589]
[1752946184790,0.15683706,117830.0,117820.0,0.13515786]
[1752946185007,0.15683706,117830.0,117820.0,0.3163589]
[1752946189147,0.15683706,117830.0,117820.0,0.31648072]
[1752946192849,0.15683706,117830.0,117820.0,0.00433968]
[1752946193061,0.17203706,117830.0,117820.0,0.31434072]
[1752946194285,0.17158269,117830.0,117820.0,0.31434072]
[1752946196829,0.17158269,117830.0,117820.0,0.31647072]
[1752946197069,0.14312504,117830.0,117820.0,0.49767176]
[1752946197734,0.14312504,117830.0,117820.0,0.31647072]
[1752946199145,0.14312504,117830.0,117820.0,0.49767176]
[1752946200473,0.14312504,117830.0,117820.0,0.31647072]
[1752946201158,0.14312504,117830.0,117820.0,0.31624467]
[1752946202546,0.01697316,117830.0,117820.0,1.14846814]
[1752946202779,0.00848543,117840.0,117830.0,0.58713577]
[1752946202999,0.01697093,117840.0,117830.0,1.04566442]
[1752946203231,0.19516275,117850.0,117840.0,0.19517924]
[1752946203450,0.20364811,117850.0,117840.0,0.72110132]
[1752946203716,0.19516311,117850.0,117840.0,0.71261567]
[1752946203947,0.17819261,117850.0,117840.0,0.16163]
[1752946204173,0.17819261,117850.0,117840.0,0.48225269]
[1752946204417,0.17819261,117850.0,117840.0,0.49073877]
[1752946204855,0.17819261,117850.0,117840.0,0.48225269]
[1752946205106,0.17819261,117850.0,117840.0,0.30105165]
[1752946205335,0.17819261,117850.0,117840.0,0.48225269]
[1752946205568,0.17819261,117850.0,117840.0,0.30105165]
[1752946205787,0.16970725,117850.0,117840.0,0.31253104]
[1752946206025,0.16970725,117850.0,117840.0,0.48225269]
[1752946206464,0.16970725,117850.0,117840.0,0.30105165]
[1752946206694,0.16970725,117850.0,117840.0,0.48225269]
[1752946207704,0.16970725,117850.0,117840.0,0.30105165]
[1752946207933,0.16970725,117850.0,117840.0,0.48225269]
[1752946208868,0.16970725,117850.0,117840.0,0.48245269]
[1752946209086,0.16970725,117850.0,117840.0,0.49093877]
[1752946210763,0.16970725,117850.0,117840.0,0.31273104]
[1752946211870,0.17265725,117850.0,117840.0,0.31273104]
[1752946214675,0.16970725,117850.0,117840.0,0.31273104]
[1752946219102,0.16970593,117860.0,117850.0,0.17819261]
[1752946219303,0.01697029,117850.0,117840.0,0.95669433]
[1752946219511,0.02545492,117850.0,117840.0,1.13789537]
[1752946219742,0.02545492,117850.0,117840.0,1.14002537]
[1752946219743,0.02545449,117850.0,117840.0,1.14002537]
[1752946220426,0.0339397,117850.0,117840.0,1.14002537]
[1752946221061,0.0339397,117850.0,117840.0,1.14102537]
[1752946221382,0.0339397,117850.0,117840.0,1.14202537]
[1752946222038,0.04242484,117850.0,117840.0,1.14202537]
[1752946222664,0.03393963,117850.0,117840.0,1.14202537]
[1752946223216,0.04242484,117850.0,117840.0,1.14202537]
[1752946224891,0.03393963,117850.0,117840.0,1.14202537]
[1752946225216,0.02545449,117850.0,117840.0,1.14202537]
[1752946225508,0.03393963,117850.0,117840.0,1.14202537]
[1752946227604,0.01696863,117860.0,117850.0,0.36545514]
[1752946227819,0.03393718,117860.0,117850.0,1.14597482]
[1752946228071,0.03393718,117860.0,117850.0,0.96477378]
[1752946229483,0.20363003,117860.0,117850.0,0.63740282]
[1752946229687,0.20800191,117860.0,117850.0,0.73587132]
[1752946229899,0.22400191,117860.0,117850.0,0.73587132]
[1752946231198,0.22400191,117860.0,117850.0,0.55467028]
[1752946231436,0.22400191,117860.0,117850.0,0.42551028]
[1752946231699,0.22400191,117860.0,117850.0,0.34]
[1752946231925,0.1866933,117840.0,117830.0,0.53986297]
[1752946232145,0.17820758,117840.0,117830.0,1.02014691]
[1752946232373,0.18131758,117840.0,117830.0,1.01166018]
[1752946232622,0.18131758,117840.0,117830.0,1.02014691]
[1752946233374,0.17486165,117840.0,117830.0,0.46040557]
[1752946233595,0.20626165,117840.0,117830.0,0.58960557]
[1752946234022,0.20626165,117840.0,117830.0,0.59060557]
[1752946234882,0.20626165,117840.0,117830.0,0.59160557]
[1752946238810,0.20626165,117840.0,117830.0,0.50609529]
[1752946239674,0.20626165,117840.0,117830.0,0.16609529]
[1752946240613,0.20626165,117840.0,117830.0,0.14445518]
[1752946242290,0.20626165,117840.0,117830.0,0.14345518]
[1752946242898,0.20626165,117840.0,117830.0,0.14245518]
[1752946245162,0.20626165,117840.0,117830.0,0.01325518]
[1752946245374,0.20626165,117840.0,117830.0,0.14229518]
[1752946253014,0.38767903,117840.0,117830.0,0.14229518]
[1752946256182,0.38767903,117840.0,117830.0,0.01325518]
[1752946256336,0.20626165,117840.0,117830.0,0.01325518]
[1752946256534,0.38767903,117840.0,117830.0,0.01325518]
[1752946260992,0.20626165,117840.0,117830.0,0.01325518]
[1752946262488,0.17283165,117840.0,117830.0,0.19673256]
[1752946262697,0.16972165,117840.0,117830.0,0.19673256]
[1752946263116,0.17268165,117840.0,117830.0,0.19673256]
[1752946263324,0.17469165,117840.0,117830.0,0.19673256]
[1752946263763,0.19089165,117840.0,117830.0,0.19673256]
[1752946264481,0.19089165,117840.0,117830.0,0.18347738]
[1752946264964,0.19089165,117840.0,117820.0,0.3422192]
[1752946264965,0.17822271,117830.0,117820.0,0.6822192]
[1752946265169,0.17822271,117830.0,117820.0,0.6842792]
[1752946266220,0.17822271,117830.0,117820.0,0.86669658]
[1752946266436,0.17822271,117830.0,117820.0,0.86769658]
[1752946270244,0.17822271,117830.0,117820.0,0.85189658]
[1752946270426,0.17822271,117830.0,117820.0,0.83609658]
[1752946277365,0.1649656,117830.0,117820.0,0.83609658]
[1752946278177,0.17345225,117830.0,117820.0,0.83609658]
[1752946281109,0.17651225,117830.0,117820.0,0.83609658]
[1752946286771,0.16325512,117830.0,117820.0,0.83609658]
[1752946290743,0.16539512,117830.0,117820.0,0.83609658]
[1752946291620,0.16539512,117830.0,117820.0,0.47326182]
[1752946291782,0.16539512,117830.0,117820.0,0.6546792]
[1752946292618,0.16539512,117830.0,117820.0,0.83609658]
[1752946295088,0.16539512,117830.0,117820.0,0.83597476]
[1752946297843,0.19769512,117830.0,117820.0,0.65225738]
[1752946308110,0.19769512,117830.0,117820.0,0.47084]
[1752946308567,0.19769512,117830.0,117820.0,0.65225738]
[1752946309336,0.19769512,117830.0,117820.0,0.6523792]
[1752946312138,0.19769512,117830.0,117820.0,0.47096182]
[1752946312354,0.19769512,117830.0,117820.0,0.6523792]
[1752946314075,0.3791125,117830.0,117820.0,0.34212182]
[1752946314296,0.5079525,117830.0,117820.0,0.00212182]
[1752946315747,0.32653512,117830.0,117820.0,0.00212182]
[1752946316010,0.5079525,117830.0,117820.0,0.00212182]
[1752946321523,0.32653512,117830.0,117820.0,0.00212182]
[1752946321730,0.5079525,117830.0,117820.0,0.00212182]
[1752946327733,0.59346278,117830.0,117820.0,0.00212182]
[1752946332916,0.4120454,117830.0,117820.0,0.00212182]
[1752946333121,0.59346278,117830.0,117820.0,0.00212182]
[1752946333765,0.4120454,117830.0,117820.0,0.00212182]
[1752946333977,0.59346278,117830.0,117820.0,0.00212182]
[1752946335634,0.4120454,117830.0,117820.0,0.00212182]
[1752946335842,0.59346278,117830.0,117820.0,0.00212182]
[1752946340040,0.59346278,117830.0,117820.0,0.002]
[1752946346936,0.4120454,117830.0,117820.0,0.002]
[1752946347150,0.59346278,117830.0,117820.0,0.002]
[1752946347597,0.4120454,117830.0,117820.0,0.002]
[1752946348012,0.59346278,117830.0,117820.0,0.002]
[1752946349026,0.4120454,117830.0,117820.0,0.002]
[1752946349399,0.59346278,117830.0,117820.0,0.002]
[1752946354225,0.4120454,117830.0,117820.0,0.00212182]
[1752946354447,0.59346278,117830.0,117820.0,0.00212182]
[1752946355096,0.29423512,117830.0,117820.0,0.2163992]
[1752946355303,0.16019512,117830.0,117820.0,0.2163992]
[1752946358458,0.16019512,117830.0,117820.0,0.2182892]
[1752946359108,0.16019512,117830.0,117820.0,0.03687182]
[1752946359320,0.16019512,117830.0,117820.0,0.2182892]
[1752946360598,0.16019512,117830.0,117820.0,0.2163992]
[1752946361053,0.16019512,117830.0,117820.0,0.03498182]
[1752946361310,0.16019512,117830.0,117820.0,0.2163992]
[1752946362624,0.1686817,117830.0,117820.0,0.39970658]
[1752946362836,0.1686817,117830.0,117820.0,0.2182892]
[1752946363708,0.1686817,117830.0,117820.0,0.03687182]
[1752946364148,0.1686817,117830.0,117820.0,0.2182892]
[1752946364911,0.1686817,117830.0,117820.0,0.03687182]
[1752946365132,0.1686817,117830.0,117820.0,0.2182892]
[1752946365747,0.35009908,117830.0,117820.0,0.03498182]
[1752946365948,0.35510908,117830.0,117820.0,0.13320182]
[1752946367924,0.35510908,117830.0,117820.0,0.00428182]
[1752946369347,0.35510908,117830.0,117820.0,0.00212182]
[1752946369991,0.38630908,117830.0,117820.0,0.00212182]
[1752946373124,0.2048917,117830.0,117820.0,0.00212182]
[1752946373353,0.38630908,117830.0,117820.0,0.00212182]
[1752946376026,0.2048917,117830.0,117820.0,0.00212182]
[1752946376230,0.38630908,117830.0,117820.0,0.00212182]
[1752946380105,0.2048917,117830.0,117820.0,0.00212182]
[1752946380316,0.38630908,117830.0,117820.0,0.00212182]
[1752946383550,0.2048917,117830.0,117820.0,0.002]
[1752946383760,0.38630908,117830.0,117820.0,0.002]
[1752946384643,0.2048917,117830.0,117820.0,0.002]
[1752946384857,0.38630908,117830.0,117820.0,0.002]
[1752946388794,0.39471518,117830.0,117820.0,0.002]
[1752946389604,0.2132978,117830.0,117820.0,0.002]
[1752946389834,0.39471518,117830.0,117820.0,0.002]
[1752946390036,0.2132978,117830.0,117820.0,0.002]
[1752946390240,0.39471518,117830.0,117820.0,0.002]
[1752946392187,0.39471518,117830.0,117820.0,0.00048]
[1752946394831,0.2132978,117830.0,117820.0,0.00048]
[1752946395039,0.39471518,117830.0,117820.0,0.00048]
[1752946397950,0.2132978,117830.0,117820.0,0.00048]
[1752946398163,0.39471518,117830.0,117820.0,0.00048]
[1752946398675,0.37901518,117830.0,117820.0,0.00048]
[1752946399969,0.37901518,117830.0,117820.0,0.00060182]
[1752946400514,0.37060908,117830.0,117820.0,0.00060182]
[1752946400804,0.38590908,117830.0,117820.0,0.00060182]
[1752946403049,0.37060908,117830.0,117820.0,0.00060182]
[1752946404094,0.45611936,117830.0,117820.0,0.00060182]
[1752946404324,0.47111936,117830.0,117820.0,0.00060182]
[1752946404947,0.55687898,117830.0,117820.0,0.00060182]
[1752946405348,0.73829636,117830.0,117820.0,0.00060182]
[1752946405573,0.55687898,117830.0,117820.0,0.00060182]
[1752946411939,0.73829636,117830.0,117820.0,1e-08]
[1752946413139,0.3754616,117830.0,117820.0,1e-08]
[1752946413332,0.73829636,117830.0,117820.0,1e-08]
[1752946413512,0.73929636,117830.0,117820.0,1e-08]